[Event "48th Indian U15-ch Girls 2023"]
[Site "Jalgaon"]
[Date "2023.12.29"]
[Round "5.5"]
[White "Akshaya Sathi"]
[Black "Sachi Jain"]
[Result "0-1"]
[WhiteElo "1542"]
[BlackElo "1844"]
[PlyCount "130"]
[EventDate "2023.12.30"]
[EventType "swiss"]
[EventCountry "IND"]
[TimeControl "5400+30"]

1. e4 {[%emt 0:00:21]} e5 {[%emt 0:01:41]} 2. Nf3 {[%emt 0:00:30]} Nc6 {[%emt 0:00:12]} 3. d4 {[%emt 0:00:33]} exd4 {[%emt 0:00:17]} 4. Nxd4 {[%emt 0:00:11]} Bc5 {[%emt 0:00:06]} 5. Be3 {[%emt 0:00:35]} Qf6 {[%emt 0:00:07]} 6. c3 {[%emt 0:00:32]} Nge7 {[%emt 0:00:07]} 7. g3 {[%emt 0:00:49]} d5 {[%emt 0:13:38]} 8. Bg2 {[%emt 0:02:11]} Bxd4 {[%emt 0:04:42]} 9. cxd4 {[%emt 0:01:19]} dxe4 {[%emt 0:00:07]} 10. Nc3 {[%emt 0:03:44]} Bf5 {[%emt 0:03:09]} 11. Nxe4 {[%emt 0:10:09]} Bxe4 {[%emt 0:03:27]} 12. Bxe4 {[%emt 0:00:03]} O-O {[%emt 0:00:44]} 13. Qg4 {[%emt 0:10:23]} Qd6 {[%emt 0:06:59]} 14. Qd1 {[%emt 0:09:17]} Rad8 {[%emt 0:01:00]} 15. O-O {[%emt 0:02:07]} Nd5 {[%emt 0:09:12]} 16. Qc2 {[%emt 0:10:40]} h6 {[%emt 0:03:01]} 17. a3 {[%emt 0:05:08]} Nce7 {[%emt 0:01:42]} 18. Rac1 {[%emt 0:03:23]} c6 {[%emt 0:00:41]} 19. g4 {[%emt 0:05:43]} Qe6 {[%emt 0:05:24]} 20. Kh1 {[%emt 0:01:32]} Nxe3 {[%emt 0:03:17]} 21. fxe3 {[%emt 0:00:20]} Qxg4 {[%emt 0:00:16]} 22. Bf5 {[%emt 0:09:03]} Nxf5 {[%emt 0:08:17]} 23. Qxf5 {[%emt 0:00:40]} Qxf5 {[%emt 0:01:34]} 24. Rxf5 {[%emt 0:00:02]} Rfe8 {[%emt 0:00:01]} 25. Rc3 {[%emt 0:03:15]} Rd6 {[%emt 0:00:40]} 26. Kg2 {[%emt 0:00:35]} Rg6+ {[%emt 0:01:11]} 27. Kf2 {[%emt 0:01:06]} Re4 {[%emt 0:02:05]} 28. Kf3 {[%emt 0:04:00]} Rh4 {[%emt 0:02:15]} 29. Rc2 {[%emt 0:01:01]} Rg1 {[%emt 0:08:03]} 30. Re5 {[%emt 0:01:25]} Rh3+ {[%emt 0:03:06]} 31. Ke4 {[%emt 0:01:17]} Re1 {[%emt 0:00:49]} 32. Kd3 {[%emt 0:01:01]} Kf8 {[%emt 0:00:48]} 33. Rd2 {[%emt 0:05:30]} f6 {[%emt 0:00:17]} 34. Re4 {[%emt 0:00:39]} Rh1 {[%emt 0:00:12]} 35. Kc4 {[%emt 0:03:32]} R1xh2 {[%emt 0:00:25]} 36. Rxh2 {[%emt 0:00:05]} Rxh2 {[%emt 0:00:03]} 37. b4 {[%emt 0:00:08]} Rh5 {[%emt 0:00:06]} 38. a4 {[%emt 0:00:23]} a6 {[%emt 0:00:25]} 39. Rg4 {[%emt 0:00:39]} Rg5 {[%emt 0:01:13]} 40. Rf4 {[%emt 0:00:08]} h5 {[%emt 0:00:30]} 41. e4 {[%emt 0:00:27]} Ke7 {[%emt 0:01:08]} 42. a5 {[%emt 0:01:30]} Ke6 {[%emt 0:01:52]} 43. Rf3 {[%emt 0:01:08]} h4 {[%emt 0:00:32]} 44. Rh3 {[%emt 0:00:53]} Rh5 {[%emt 0:00:25]} 45. d5+ {[%emt 0:00:20]} cxd5+ {[%emt 0:00:19]} 46. exd5+ {[%emt 0:00:02]} Kd6 {[%emt 0:00:05]} 47. b5 {[%emt 0:00:34]} Rxd5 {[%emt 0:00:54]} 48. bxa6 {[%emt 0:00:07]} bxa6 {[%emt 0:00:01]} 49. Rxh4 {[%emt 0:00:09]} Rxa5 {[%emt 0:00:01]} 50. Rh7 {[%emt 0:00:22]} Ra4+ {[%emt 0:00:02]} 51. Kd3 {[%emt 0:00:11]} Rg4 {[%emt 0:00:02]} 52. Rh5 {[%emt 0:00:13]} g5 {[%emt 0:00:06]} 53. Rh8 {[%emt 0:00:12]} Ke5 {[%emt 0:00:02]} 54. Ra8 {[%emt 0:00:07]} Ra4 {[%emt 0:00:07]} 55. Ke3 {[%emt 0:00:22]} Ra3+ {[%emt 0:00:02]} 56. Kf2 {[%emt 0:00:12]} Kf4 {[%emt 0:00:01]} 57. Rf8 {[%emt 0:00:07]} f5 {[%emt 0:00:02]} 58. Rc8 {[%emt 0:00:10]} Ra2+ {[%emt 0:00:11]} 59. Kf1 {[%emt 0:00:04]} Kg4 {[%emt 0:00:09]} 60. Rc4+ {[%emt 0:00:06]} f4 {[%emt 0:00:01]} 61. Rc5 {[%emt 0:00:14]} a5 {[%emt 0:00:21]} 62. Kg1 {[%emt 0:00:12]} a4 {[%emt 0:00:08]} 63. Ra5 {[%emt 0:00:06]} a3 {[%emt 0:00:03]} 64. Rb5 {[%emt 0:00:19]} Rb2 {[%emt 0:00:25]} 65. Ra5 {[%emt 0:00:04]} a2 {[%emt 0:00:01]} 0-1

[Event "48th Indian U15-ch Girls 2023"]
[Site "Jalgaon"]
[Date "2023.12.29"]
[Round "5.6"]
[White "Sneha Halder"]
[Black "Krishika Garg"]
[Result "1-0"]
[WhiteElo "1766"]
[BlackElo "1529"]
[PlyCount "133"]
[EventDate "2023.12.30"]
[EventType "swiss"]
[EventCountry "IND"]
[TimeControl "5400+30"]

1. g3 {[%emt 0:00:20]} Nf6 {[%emt 0:00:10]} 2. Bg2 {[%emt 0:00:12]} d5 {[%emt 0:00:08]} 3. Nf3 {[%emt 0:00:24]} Bg4 {[%emt 0:01:18]} 4. O-O {[%emt 0:00:18]} Nbd7 {[%emt 0:00:23]} 5. d3 {[%emt 0:01:54]} e5 {[%emt 0:03:29]} 6. Nc3 {[%emt 0:01:03]} c6 {[%emt 0:00:35]} 7. Bg5 {[%emt 0:02:41]} Qc7 {[%emt 0:05:54]} 8. a3 {[%emt 0:01:14]} Be7 {[%emt 0:03:38]} 9. h3 {[%emt 0:06:32]} Bh5 {[%emt 0:00:52]} 10. Qd2 {[%emt 0:02:34]} h6 {[%emt 0:03:07]} 11. Bxf6 {[%emt 0:00:45]} Nxf6 {[%emt 0:00:16]} 12. Nh4 {[%emt 0:02:27]} O-O {[%emt 0:15:40]} 13. Nf5 {[%emt 0:06:03]} Bg6 {[%emt 0:01:07]} 14. Nxe7+ {[%emt 0:02:02]} Qxe7 {[%emt 0:00:03]} 15. e3 {[%emt 0:04:07]} Rfe8 {[%emt 0:02:20]} 16. Rae1 {[%emt 0:01:37]} e4 {[%emt 0:04:40]} 17. d4 {[%emt 0:04:03]} Nh7 {[%emt 0:02:01]} 18. Ne2 {[%emt 0:02:27]} Ng5 {[%emt 0:03:38]} 19. Nf4 {[%emt 0:00:34]} Bf5 {[%emt 0:00:59]} 20. g4 {[%emt 0:03:30]} Bh7 {[%emt 0:08:49]} 21. Qe2 {[%emt 0:09:56]} Qd7 {[%emt 0:07:42]} 22. Rc1 {[%emt 0:05:35]} Rac8 {[%emt 0:11:17]} 23. c4 {[%emt 0:06:40]} Ne6 {[%emt 0:00:16]} 24. Nxe6 {[%emt 0:01:18]} Rxe6 {[%emt 0:03:34]} 25. Rc3 {[%emt 0:06:24]} Ree8 {[%emt 0:07:42]} 26. Rfc1 {[%emt 0:01:20]} f5 {[%emt 0:00:48]} 27. b4 {[%emt 0:01:29]} fxg4 {[%emt 0:02:05]} 28. hxg4 {[%emt 0:00:55]} dxc4 {[%emt 0:01:05]} 29. Rxc4 {[%emt 0:00:40]} Bg6 {[%emt 0:00:45]} 30. Rc5 {[%emt 0:01:06]} b6 {[%emt 0:01:35]} 31. R5c3 {[%emt 0:06:03]} Bf7 {[%emt 0:00:36]} 32. f4 {[%emt 0:02:52]} exf3 {[%emt 0:02:26]} 33. Bxf3 {[%emt 0:00:06]} Bd5 {[%emt 0:00:23]} 34. Bg2 {[%emt 0:01:42]} Qd6 {[%emt 0:06:47]} 35. Qf2 {[%emt 0:01:35]} Rcd8 {[%emt 0:00:48]} 36. Bxd5+ {[%emt 0:09:59]} cxd5 {[%emt 0:00:10]} 37. Rc6 {[%emt 0:00:23]} Qe7 {[%emt 0:00:48]} 38. Rg6 {[%emt 0:02:02]} Qxe3 {[%emt 0:00:53]} 39. Qxe3 {[%emt 0:00:02]} Rxe3 {[%emt 0:00:02]} 40. Rc7 {[%emt 0:00:02]} Rf3 {[%emt 0:00:46]} 41. Rgxg7+ {[%emt 0:00:29]} Kf8 {[%emt 0:00:14]} 42. Kg2 {[%emt 0:01:16]} Rf6 {[%emt 0:00:18]} 43. Rh7 {[%emt 0:00:59]} Kg8 {[%emt 0:00:32]} 44. Rcg7+ {[%emt 0:00:29]} Kf8 {[%emt 0:00:09]} 45. Rxa7 {[%emt 0:00:03]} Kg8 {[%emt 0:00:17]} 46. Kg3 {[%emt 0:02:44]} Rc8 {[%emt 0:01:21]} 47. Rag7+ {[%emt 0:00:23]} Kf8 {[%emt 0:00:07]} 48. Rc7 {[%emt 0:00:20]} Rxc7 {[%emt 0:00:17]} 49. Rxc7 {[%emt 0:00:01]} Re6 {[%emt 0:00:05]} 50. Rd7 {[%emt 0:00:27]} Re3+ {[%emt 0:00:30]} 51. Kh4 {[%emt 0:00:00]} Rxa3 {[%emt 0:00:21]} 52. Rxd5 {[%emt 0:00:01]} Kf7 {[%emt 0:00:46]} 53. Rb5 {[%emt 0:01:00]} Rd3 {[%emt 0:00:06]} 54. Rxb6 {[%emt 0:00:14]} Rxd4 {[%emt 0:00:03]} 55. Kh5 {[%emt 0:00:07]} Ke7 {[%emt 0:00:12]} 56. b5 {[%emt 0:01:04]} Rb4 {[%emt 0:00:10]} 57. Rb8 {[%emt 0:00:45]} Kd7 {[%emt 0:00:25]} 58. b6 {[%emt 0:00:17]} Kc6 {[%emt 0:00:15]} 59. Rh8 {[%emt 0:00:33]} Rb5+ {[%emt 0:01:16]} 60. Kh4 {[%emt 0:00:17]} Rb1 {[%emt 0:01:02]} 61. Rxh6+ {[%emt 0:00:06]} Kb7 {[%emt 0:00:02]} 62. Rf6 {[%emt 0:00:15]} Rb4 {[%emt 0:00:30]} 63. Kh5 {[%emt 0:00:03]} Rb1 {[%emt 0:00:58]} 64. g5 {[%emt 0:00:06]} Rh1+ {[%emt 0:00:18]} 65. Kg6 {[%emt 0:00:03]} Rg1 {[%emt 0:00:14]} 66. Kh6 {[%emt 0:00:05]} Rh1+ {[%emt 0:00:11]} 67. Kg7 {[%emt 0:00:07]} 1-0

[Event "48th Indian U15-ch Girls 2023"]
[Site "Jalgaon"]
[Date "2023.12.29"]
[Round "5.7"]
[White "Aditi Arun"]
[Black "Arshiya Das"]
[Result "0-1"]
[WhiteElo "1447"]
[BlackElo "1729"]
[PlyCount "110"]
[EventDate "2023.12.30"]
[EventType "swiss"]
[EventCountry "IND"]
[TimeControl "5400+30"]

1. e4 {[%emt 0:00:02]} g6 {[%emt 0:00:09]} 2. d4 {[%emt 0:00:02]} Bg7 {[%emt 0:00:04]} 3. f4 {[%emt 0:00:30]} d6 {[%emt 0:00:04]} 4. c3 {[%emt 0:02:58]} a6 {[%emt 0:00:18]} 5. Nf3 {[%emt 0:00:49]} b6 {[%emt 0:06:49]} 6. Be3 {[%emt 0:04:01]} Bb7 {[%emt 0:00:29]} 7. Nbd2 {[%emt 0:00:04]} e6 {[%emt 0:01:03]} 8. Qc2 {[%emt 0:03:06]} Ne7 {[%emt 0:01:29]} 9. Be2 {[%emt 0:02:48]} Nd7 {[%emt 0:00:19]} 10. O-O {[%emt 0:01:12]} h6 {[%emt 0:00:17]} 11. b4 {[%emt 0:07:43]} O-O {[%emt 0:00:39]} 12. Nb3 {[%emt 0:04:04]} Kh7 {[%emt 0:01:41]} 13. Bd3 {[%emt 0:00:34]} f5 {[%emt 0:09:48]} 14. Rae1 {[%emt 0:06:14]} Qe8 {[%emt 0:05:16]} 15. Bd2 {[%emt 0:00:51]} Qf7 {[%emt 0:03:16]} 16. e5 {[%emt 0:02:28]} dxe5 {[%emt 0:01:47]} 17. fxe5 {[%emt 0:07:02]} Kh8 {[%emt 0:02:34]} 18. Re2 {[%emt 0:05:00]} g5 {[%emt 0:03:01]} 19. Ref2 {[%emt 0:01:43]} g4 {[%emt 0:02:20]} 20. Ne1 {[%emt 0:01:34]} Ng6 {[%emt 0:01:28]} 21. g3 {[%emt 0:07:49]} Qe7 {[%emt 0:02:57]} 22. Qc1 {[%emt 0:00:38]} Kh7 {[%emt 0:00:45]} 23. Ng2 {[%emt 0:00:11]} Rfc8 {[%emt 0:01:50]} 24. Nf4 {[%emt 0:01:04]} Nxf4 {[%emt 0:03:17]} 25. Rxf4 {[%emt 0:03:30]} h5 {[%emt 0:05:07]} 26. R4f2 {[%emt 0:02:12]} Nf8 {[%emt 0:00:46]} 27. Re1 {[%emt 0:02:03]} Ng6 {[%emt 0:02:14]} 28. Bg5 {[%emt 0:00:44]} Qd7 {[%emt 0:06:01]} 29. Bf1 {[%emt 0:00:20]} Nh8 {[%emt 0:01:51]} 30. Bg2 {[%emt 0:03:59]} Bxg2 {[%emt 0:00:03]} 31. Rxg2 {[%emt 0:00:03]} Nf7 {[%emt 0:00:06]} 32. Bf4 {[%emt 0:00:26]} Rg8 {[%emt 0:01:28]} 33. Qe3 {[%emt 0:05:06]} Bh6 {[%emt 0:02:46]} 34. Bxh6 {[%emt 0:00:11]} Nxh6 {[%emt 0:00:03]} 35. Nc1 {[%emt 0:02:58]} Nf7 {[%emt 0:00:30]} 36. Ne2 {[%emt 0:00:02]} Ng5 {[%emt 0:00:14]} 37. Rf1 {[%emt 0:01:04]} Nh3+ {[%emt 0:06:11]} 38. Kh1 {[%emt 0:00:03]} Qb5 {[%emt 0:00:13]} 39. Rc1 {[%emt 0:01:24]} Qe8 {[%emt 0:06:40]} 40. Nf4 {[%emt 0:02:27]} Ng5 {[%emt 0:00:07]} 41. d5 {[%emt 0:01:22]} Rd8 {[%emt 0:01:56]} 42. Rd1 {[%emt 0:02:53]} exd5 {[%emt 0:04:50]} 43. Nxd5 {[%emt 0:02:16]} Ne4 {[%emt 0:00:05]} 44. Qf4 {[%emt 0:06:26]} Qe6 {[%emt 0:00:12]} 45. Rgd2 {[%emt 0:01:14]} Nxd2 {[%emt 0:01:57]} 46. Nf6+ {[%emt 0:00:04]} Kg6 {[%emt 0:00:04]} 47. Nxg8 {[%emt 0:00:32]} Qd5+ {[%emt 0:01:16]} 48. Kg1 {[%emt 0:00:25]} Nf3+ {[%emt 0:00:04]} 49. Kf2 {[%emt 0:02:34]} Qxa2+ {[%emt 0:00:18]} 50. Ke3 {[%emt 0:00:57]} Qxg8 {[%emt 0:00:09]} 51. Rxd8 {[%emt 0:03:20]} Qxd8 {[%emt 0:00:05]} 52. Ke2 {[%emt 0:00:15]} Qd5 {[%emt 0:00:19]} 53. Qe3 {[%emt 0:01:25]} Qxe5 {[%emt 0:00:07]} 54. Kf2 {[%emt 0:01:10]} Qxe3+ {[%emt 0:00:15]} 55. Kxe3 {[%emt 0:00:05]} Nxh2 {[%emt 0:00:03]} 0-1

[Event "48th Indian U15-ch Girls 2023"]
[Site "Jalgaon"]
[Date "2023.12.29"]
[Round "5.8"]
[White "Rajanya Datta"]
[Black "Asmita Avijit Ray"]
[Result "0-1"]
[WhiteElo "1688"]
[BlackElo "1470"]
[PlyCount "86"]
[EventDate "2023.12.30"]
[EventType "swiss"]
[EventCountry "IND"]
[TimeControl "5400+30"]

1. e4 {[%emt 0:03:09]} c6 {[%emt 0:00:08]} 2. d4 {[%emt 0:00:06]} d5 {[%emt 0:00:06]} 3. f3 {[%emt 0:00:11]} dxe4 {[%emt 0:00:07]} 4. fxe4 {[%emt 0:00:05]} e5 {[%emt 0:00:07]} 5. Nf3 {[%emt 0:00:14]} Bg4 {[%emt 0:00:10]} 6. Bc4 {[%emt 0:00:08]} Nd7 {[%emt 0:00:07]} 7. O-O {[%emt 0:00:39]} Ngf6 {[%emt 0:00:14]} 8. c3 {[%emt 0:03:57]} Bd6 {[%emt 0:01:00]} 9. Bg5 {[%emt 0:00:50]} O-O {[%emt 0:00:22]} 10. Qc2 {[%emt 0:01:49]} Qb6 {[%emt 0:08:30]} 11. Nbd2 {[%emt 0:03:12]} Qc7 {[%emt 0:04:19]} 12. Kh1 {[%emt 0:04:13]} Rae8 {[%emt 0:04:52]} 13. Bd3 {[%emt 0:05:36]} b5 {[%emt 0:00:26]} 14. Rae1 {[%emt 0:07:52]} h6 {[%emt 0:06:39]} 15. Be3 {[%emt 0:01:58]} Re7 {[%emt 0:14:25]} 16. Nb3 {[%emt 0:26:57]} Rfe8 {[%emt 0:10:49]} 17. Bc1 {[%emt 0:05:48]} a5 {[%emt 0:19:18]} 18. Qf2 {[%emt 0:09:47]} exd4 {[%emt 0:01:32]} 19. cxd4 {[%emt 0:00:08]} Nxe4 {[%emt 0:02:46]} 20. Bxe4 {[%emt 0:12:24]} Rxe4 {[%emt 0:01:22]} 21. Ne5 {[%emt 0:01:54]} Nf6 {[%emt 0:00:14]} 22. Rxe4 {[%emt 0:04:00]} Nxe4 {[%emt 0:00:17]} 23. Qc2 {[%emt 0:00:50]} Nf6 {[%emt 0:03:23]} 24. h3 {[%emt 0:02:17]} Be6 {[%emt 0:04:52]} 25. Bxh6 {[%emt 0:00:35]} Nh5 {[%emt 0:03:54]} 26. Bf4 {[%emt 0:01:56]} Nxf4 {[%emt 0:00:22]} 27. Rxf4 {[%emt 0:00:06]} Bxe5 {[%emt 0:00:12]} 28. dxe5 {[%emt 0:00:05]} Qxe5 {[%emt 0:00:21]} 29. Qxc6 {[%emt 0:01:11]} Bd5 {[%emt 0:00:20]} 30. Qc1 {[%emt 0:00:31]} Qg5 {[%emt 0:02:34]} 31. Qd2 {[%emt 0:00:14]} Bxg2+ {[%emt 0:00:15]} 32. Kh2 {[%emt 0:00:05]} Bd5 {[%emt 0:00:57]} 33. Qf2 {[%emt 0:01:13]} Re1 {[%emt 0:00:42]} 34. Rg4 {[%emt 0:02:22]} Qe5+ {[%emt 0:00:32]} 35. Qf4 {[%emt 0:00:04]} Rh1+ {[%emt 0:00:48]} 36. Kg3 {[%emt 0:00:07]} Qe1+ {[%emt 0:00:05]} 37. Qf2 {[%emt 0:00:39]} Rxh3+ {[%emt 0:00:06]} 38. Kxh3 {[%emt 0:00:04]} Qxf2 {[%emt 0:00:06]} 39. Rd4 {[%emt 0:00:05]} Be6+ {[%emt 0:00:31]} 40. Rg4 {[%emt 0:00:06]} Qf3+ {[%emt 0:00:12]} 41. Kh2 {[%emt 0:00:03]} Bxg4 {[%emt 0:00:07]} 42. Nxa5 {[%emt 0:00:05]} Bh3 {[%emt 0:00:10]} 43. a4 {[%emt 0:00:05]} Qg2# {[%emt 0:00:03]} 0-1

[Event "48th Indian U15-ch Girls 2023"]
[Site "Jalgaon"]
[Date "2023.12.29"]
[Round "5.9"]
[White "Drishtee Ghosh"]
[Black "Yashvi Jain"]
[Result "1-0"]
[WhiteElo "1605"]
[BlackElo "1442"]
[PlyCount "63"]
[EventDate "2023.12.30"]
[EventType "swiss"]
[EventCountry "IND"]
[TimeControl "5400+30"]

1. e4 {[%emt 0:00:02]} e5 {[%emt 0:00:07]} 2. Bc4 {[%emt 0:00:03]} Nc6 {[%emt 0:00:13]} 3. Nc3 {[%emt 0:00:07]} Bc5 {[%emt 0:00:37]} 4. d3 {[%emt 0:00:57]} Nf6 {[%emt 0:01:18]} 5. f4 {[%emt 0:00:08]} d6 {[%emt 0:00:26]} 6. Nf3 {[%emt 0:00:07]} a6 {[%emt 0:00:11]} 7. f5 {[%emt 0:09:00]} h6 {[%emt 0:00:50]} 8. Qe2 {[%emt 0:05:30]} Ng4 {[%emt 0:05:15]} 9. h3 {[%emt 0:05:49]} Nf6 {[%emt 0:03:37]} 10. g4 {[%emt 0:06:08]} Nd4 {[%emt 0:08:54]} 11. Nxd4 {[%emt 0:01:19]} Bxd4 {[%emt 0:00:30]} 12. Nd1 {[%emt 0:05:19]} c6 {[%emt 0:03:20]} 13. c3 {[%emt 0:01:15]} Ba7 {[%emt 0:00:17]} 14. Be3 {[%emt 0:03:15]} Qe7 {[%emt 0:01:24]} 15. Bxa7 {[%emt 0:02:32]} Rxa7 {[%emt 0:00:02]} 16. Ne3 {[%emt 0:00:02]} b5 {[%emt 0:02:41]} 17. Bb3 {[%emt 0:00:02]} Rd7 {[%emt 0:00:12]} 18. O-O-O {[%emt 0:02:31]} d5 {[%emt 0:01:16]} 19. exd5 {[%emt 0:06:50]} cxd5 {[%emt 0:00:23]} 20. h4 {[%emt 0:00:50]} Bb7 {[%emt 0:04:24]} 21. g5 {[%emt 0:03:41]} Ng8 {[%emt 0:01:04]} 22. f6 {[%emt 0:13:52]} gxf6 {[%emt 0:02:24]} 23. Nf5 {[%emt 0:01:31]} Qd8 {[%emt 0:00:53]} 24. Rhe1 {[%emt 0:01:02]} hxg5 {[%emt 0:03:00]} 25. hxg5 {[%emt 0:00:02]} e4 {[%emt 0:01:56]} 26. dxe4 {[%emt 0:01:12]} dxe4 {[%emt 0:00:20]} 27. Qg4 {[%emt 0:02:13]} Kf8 {[%emt 0:09:58]} 28. Rxd7 {[%emt 0:04:21]} Qxd7 {[%emt 0:00:12]} 29. Rd1 {[%emt 0:00:39]} Qc7 {[%emt 0:02:03]} 30. Qg3 {[%emt 0:01:07]} Qc8 {[%emt 0:02:51]} 31. Qd6+ {[%emt 0:00:11]} Ke8 {[%emt 0:00:11]} 32. Ng7# {[%emt 0:00:08]} 1-0

[Event "48th Indian U15-ch Girls 2023"]
[Site "Jalgaon"]
[Date "2023.12.29"]
[Round "5.10"]
[White "Suravi Bhattacharya"]
[Black "Nivedita V C"]
[Result "0-1"]
[WhiteElo "1420"]
[BlackElo "1638"]
[PlyCount "154"]
[EventDate "2023.12.30"]
[EventType "swiss"]
[EventCountry "IND"]
[TimeControl "5400+30"]

1. d4 {[%emt 0:00:30]} Nf6 {[%emt 0:00:30]} 2. c4 {[%emt 0:00:30]} g6 {[%emt 0:00:30]} 3. g3 {[%emt 0:00:30]} Bg7 {[%emt 0:00:30]} 4. Bg2 {[%emt 0:00:30]} O-O {[%emt 0:00:30]} 5. Nf3 {[%emt 0:00:30]} d6 {[%emt 0:00:30]} 6. Nc3 {[%emt 0:00:30]} Nc6 {[%emt 0:00:30]} 7. O-O {[%emt 0:00:30]} e5 {[%emt 0:00:30]} 8. d5 {[%emt 0:00:30]} Ne7 {[%emt 0:00:30]} 9. e4 {[%emt 0:00:30]} Nd7 {[%emt 0:00:30]} 10. Be3 {[%emt 0:00:30]} h6 {[%emt 0:00:30]} 11. Qd2 {[%emt 0:00:30]} Kh7 {[%emt 0:00:30]} 12. Rac1 {[%emt 0:00:30]} f5 {[%emt 0:00:30]} 13. b4 {[%emt 0:00:30]} a5 {[%emt 0:00:30]} 14. a3 {[%emt 0:00:30]} Nf6 {[%emt 0:00:30]} 15. Ne1 {[%emt 0:00:30]} Ng4 {[%emt 0:00:30]} 16. Nd3 {[%emt 0:00:30]} g5 {[%emt 0:00:30]} 17. exf5 {[%emt 0:00:30]} Nxf5 {[%emt 0:00:30]} 18. Ne4 {[%emt 0:00:30]} Nd4 {[%emt 0:00:30]} 19. Bxd4 {[%emt 0:00:30]} exd4 {[%emt 0:00:30]} 20. c5 {[%emt 0:00:30]} dxc5 {[%emt 0:00:30]} 21. bxc5 {[%emt 0:00:30]} Bf5 {[%emt 0:00:30]} 22. d6 {[%emt 0:00:30]} Kh8 {[%emt 0:00:30]} 23. dxc7 {[%emt 0:00:30]} Qxc7 {[%emt 0:00:30]} 24. Nd6 {[%emt 0:00:30]} Bxd3 {[%emt 0:00:30]} 25. Qxd3 {[%emt 0:00:30]} Ne5 {[%emt 0:00:30]} 26. Qe4 {[%emt 0:00:30]} Rab8 {[%emt 0:00:30]} 27. h3 {[%emt 0:00:30]} b5 {[%emt 0:00:30]} 28. f4 {[%emt 0:00:30]} Nf7 {[%emt 0:00:30]} 29. Nxf7+ {[%emt 0:00:30]} Rxf7 {[%emt 0:00:30]} 30. fxg5 {[%emt 0:00:30]} Rxf1+ {[%emt 0:00:30]} 31. Rxf1 {[%emt 0:00:30]} Qxg3 {[%emt 0:00:30]} 32. gxh6 {[%emt 0:00:30]} Bxh6 {[%emt 0:00:30]} 33. Qxd4+ {[%emt 0:00:30]} Qg7 {[%emt 0:00:30]} 34. Qxg7+ {[%emt 0:00:30]} Bxg7 {[%emt 0:00:30]} 35. c6 {[%emt 0:00:30]} Be5 {[%emt 0:00:30]} 36. Rf5 {[%emt 0:00:30]} Re8 {[%emt 0:00:30]} 37. Rf7 {[%emt 0:00:30]} b4 {[%emt 0:00:30]} 38. axb4 {[%emt 0:00:30]} axb4 {[%emt 0:00:30]} 39. Rb7 {[%emt 0:00:30]} Bd6 {[%emt 0:00:30]} 40. Bf3 {[%emt 0:00:30]} Rg8+ {[%emt 0:00:30]} 41. Kf2 {[%emt 0:00:30]} Rg7 {[%emt 0:00:30]} 42. Rb5 {[%emt 0:00:30]} Kg8 {[%emt 0:00:30]} 43. Bg4 {[%emt 0:00:30]} Ra7 {[%emt 0:00:30]} 44. Ke3 {[%emt 0:00:30]} Kf7 {[%emt 0:00:30]} 45. Kd4 {[%emt 0:00:30]} Ke7 {[%emt 0:00:30]} 46. Rh5 {[%emt 0:00:30]} Kd8 {[%emt 0:00:30]} 47. Kd5 {[%emt 0:00:30]} Bh2 {[%emt 0:00:30]} 48. Rh8+ {[%emt 0:00:30]} Kc7 {[%emt 0:00:30]} 49. Rc8+ {[%emt 0:00:30]} Kb6 {[%emt 0:00:30]} 50. h4 {[%emt 0:00:30]} b3 {[%emt 0:00:30]} 51. Ke6 {[%emt 0:00:30]} Ra5 {[%emt 0:00:30]} 52. Bd1 {[%emt 0:00:30]} b2 {[%emt 0:00:30]} 53. Bc2 {[%emt 0:00:30]} Rh5 {[%emt 0:00:30]} 54. Kd7 {[%emt 0:00:30]} Rxh4 {[%emt 0:00:30]} 55. c7 {[%emt 0:00:30]} Rd4+ {[%emt 0:00:30]} 56. Ke6 {[%emt 0:00:30]} Bxc7 {[%emt 0:00:30]} 57. Rg8 {[%emt 0:00:30]} Rd2 {[%emt 0:00:30]} 58. Bf5 {[%emt 0:00:30]} Re2+ {[%emt 0:00:30]} 59. Kd7 {[%emt 0:00:30]} Rd2+ {[%emt 0:00:30]} 60. Ke7 {[%emt 0:00:30]} Kc6 {[%emt 0:00:30]} 61. Rg4 {[%emt 0:00:30]} Re2+ {[%emt 0:00:30]} 62. Kf6 {[%emt 0:00:30]} Rf2 {[%emt 0:00:30]} 63. Rg1 {[%emt 0:00:30]} Bf4 {[%emt 0:00:30]} 64. Rb1 {[%emt 0:00:30]} Bc1 {[%emt 0:00:30]} 65. Ke5 {[%emt 0:00:30]} Kc5 {[%emt 0:00:30]} 66. Bh7 {[%emt 0:00:30]} Rf7 {[%emt 0:00:30]} 67. Bg6 {[%emt 0:00:30]} Re7+ {[%emt 0:00:30]} 68. Kf5 {[%emt 0:00:30]} Ra7 {[%emt 0:00:30]} 69. Ke5 {[%emt 0:00:30]} Kb4 {[%emt 0:00:30]} 70. Kd4 {[%emt 0:00:30]} Rd7+ {[%emt 0:00:30]} 71. Ke5 {[%emt 0:00:30]} Ra7 {[%emt 0:00:30]} 72. Kd4 {[%emt 0:00:30]} Ra1 {[%emt 0:00:30]} 73. Bc2 {[%emt 0:00:30]} Ka3 {[%emt 0:00:30]} 74. Kc4 {[%emt 0:00:30]} Bg5 {[%emt 0:00:30]} 75. Kc3 {[%emt 0:00:30]} Bf6+ {[%emt 0:00:30]} 76. Kd2 {[%emt 0:00:30]} Ka2 {[%emt 0:00:30]} 77. Rd1 {[%emt 0:00:30]} Rc1 {[%emt 0:00:30]} 0-1